fUSD/lending_fUSD_20240426
["ID","MTS","AMOUNT","RATE_DAILY","PERIOD"]
[323704407,1714168278250,-25000.0,0.00023487,2]
[323704408,1714168278259,-150.0,0.000235,3]
[323704409,1714168278269,-648.02913161,0.000235,2]
[323704410,1714168278278,-284.98138062,0.00023578,2]
[323704411,1714168278287,-522.18,0.00023584,2]
[323704412,1714168278297,-531.62,0.00023584,2]
[323704413,1714168278306,-284.67128138,0.00023616,2]
[323704414,1714168278315,-150.0,0.00023621,10]
[323704415,1714168278324,-150.0,0.00023621,10]
[323704416,1714168278334,-150.0,0.00023621,10]
[323704417,1714168278343,-150.0,0.00023621,10]
[323704418,1714168278352,-284.98138062,0.00023656,2]
[323704419,1714168278361,-609.06151124,0.00023664,2]
[323704420,1714168278371,-181.23100013,0.00023691,2]
[323704421,1714168278380,-151.59500228,0.00023713,2]
[323704422,1714168278389,-5000.0,0.00023737,2]
[323704423,1714168278399,-407.24746971,0.00023745,2]
[323704424,1714168278409,-3037.89289265,0.0002375,2]
[323704425,1714168278420,-20628.16790664,0.00023751,2]
[323704426,1714168278429,-254.99138526,0.00023753,2]
[323704427,1714168278439,-501.03058277,0.00023755,2]
[323704428,1714168278448,-5000.0,0.00023799,2]
[323704429,1714168278457,-407.24746971,0.00023806,2]
[323704430,1714168278466,-5000.0,0.00023807,2]
[323704431,1714168278476,-166.66666666,0.00023807,2]
[323704432,1714168278485,-501.03058277,0.00023816,2]
[323704433,1714168278495,-723.659919,0.00023836,2]
[323704434,1714168278505,-283.77,0.0002385,2]
[323704435,1714168278514,-609.06151124,0.00023865,2]
[323704436,1714168278524,-181.23100013,0.00023882,2]
[323704437,1714168278533,-272.56348489,0.00023898,2]
[323704438,1714168278542,-10000.0,0.000239,2]
[323704439,1714168278552,-284.67128138,0.00023916,2]
[323704440,1714168278562,-501.03058277,0.00023934,2]
[323704441,1714168278571,-5000.0,0.00023938,2]
[323704442,1714168278586,-152.40213237,0.00023957,2]
[323704443,1714168278595,-284.98138062,0.00023961,2]
[323704444,1714168278606,-5000.0,0.00023963,2]
[323704445,1714168278616,-762.0,0.00023972,2]
[323704446,1714168278626,-10000.0,0.00023974,2]
[323704447,1714168278636,-50000.0,0.00024,4]
[323704448,1714168278645,-994.77907905,0.00024,2]
[323704449,1714168278655,-172.86200088,0.00024,2]
[323704450,1714168278665,-208.45920785,0.00024,2]
[323704451,1714168278676,-943.72883608,0.00024,2]
[323704452,1714168278686,-1779.45202269,0.00024,2]
[323704453,1714168278696,-707.0,0.00024,2]
[323704454,1714168278706,-220000.0,0.00024,2]
[323704455,1714168278717,-150.0,0.00024,2]
[323704456,1714168278726,-819.0,0.00024,2]
[323704457,1714168278736,-2915.85,0.00024,2]
[323704458,1714168278746,-2329.94,0.00024,2]
[323704459,1714168278756,-150.0,0.00024,4]
[323704460,1714168278765,-648.02913161,0.00024,2]
[323704461,1714168278777,-501.03058277,0.00024003,2]
[323704462,1714168278786,-159.79986867,0.00024009,2]
[323704463,1714168278796,-181.23100013,0.00024034,2]
[323704464,1714168278806,-154.85502402,0.0002406,2]
[323704465,1714168278815,-1500.0,0.0002408,2]
[323704466,1714168278824,-1032.37281911,0.000241,2]
[323704467,1714168278834,-2699.99,0.000241,2]
[323704468,1714168278844,-151.95330981,0.00024101,2]
[323704469,1714168278853,-254.99138526,0.00024114,2]
[323704470,1714168278862,-202.77596103,0.00024116,2]
[323704471,1714168278872,-202.77596098,0.00024116,2]
[323704472,1714168278882,-300000.0,0.00024117,2]
[323704473,1714168278891,-166.66666666,0.00024118,2]
[323704474,1714168278900,-284.98138062,0.00024142,2]
[323704475,1714168278911,-254.99138554,0.00024157,2]
[323704476,1714168278921,-609.06151124,0.00024173,2]
[323704477,1714168278931,-1000.34,0.000242,2]
[323704478,1714168278941,-393.36531237,0.0002421,2]
[323704479,1714168278951,-181.23100013,0.00024213,2]
[323704480,1714168278960,-181.23100013,0.00024214,2]
[323704481,1714168278970,-284.67128138,0.00024215,2]
[323704482,1714168278980,-181.23100013,0.00024233,2]
[323704483,1714168278989,-1205.27323317,0.0002425,2]
[323704484,1714168278999,-153.11746326,0.00024391,2]
[323704485,1714168279009,-407.24746971,0.0002443,2]
[323704486,1714168279019,-501.03058277,0.00024441,2]
[323704487,1714168279029,-165.83122873,0.00024446,2]
[323704488,1714168279039,-407.24746971,0.00024454,2]
[323704489,1714168279049,-181.23100013,0.00024461,2]
[323704490,1714168279058,-501.03058277,0.00024486,2]
[323704491,1714168279069,-1000.0,0.000245,2]
[323704492,1714168279079,-808.04969263,0.000245,2]
[323704493,1714168279089,-1100.3663291,0.000245,2]
[323704494,1714168279098,-1104.22600106,0.000245,2]
[323704495,1714168279109,-150.0,0.000245,4]
[323704496,1714168279119,-648.02913161,0.00024501,2]
[323704497,1714168279131,-9320.91162054,0.00024514,2]
[323704498,1714168279140,-9320.91162053,0.00024514,2]
[323704499,1714168279150,-9320.91162053,0.00024514,2]
[323704500,1714168279159,-284.67128138,0.00024515,2]
[323704501,1714168279170,-501.03058303,0.00024542,2]
[323704502,1714168279180,-609.06151124,0.00024548,2]
[323704503,1714168279190,-166.66666667,0.00024579,2]
[323704504,1714168279200,-151.59500228,0.00024598,2]
[323704505,1714168279215,-181.23100013,0.00024605,2]
[323704506,1714168279225,-4058.72,0.0002463,2]
[323704507,1714168279234,-4058.72,0.0002463,2]
[323704508,1714168279244,-4058.72,0.0002463,2]
[323704509,1714168279253,-4058.72,0.0002463,2]
[323704510,1714168279263,-4058.72,0.0002463,2]
[323704511,1714168279272,-4058.72,0.0002463,2]
[323704512,1714168279282,-4058.72,0.0002463,2]
[323704513,1714168279292,-4058.72,0.0002463,2]
[323704514,1714168279302,-4058.72,0.0002463,2]
[323704515,1714168279312,-4058.72,0.0002463,2]
[323704516,1714168279322,-4058.72,0.0002463,2]
[323704517,1714168279332,-4058.72,0.0002463,2]
[323704518,1714168279342,-4058.72,0.0002463,2]
[323704519,1714168279353,-4058.72,0.0002463,2]
[323704520,1714168279363,-4058.72,0.0002463,2]
[323704521,1714168279373,-4058.72,0.0002463,2]
[323704522,1714168279383,-4058.72,0.0002463,2]
[323704523,1714168279392,-4058.72,0.0002463,2]
[323704524,1714168279402,-4058.72,0.0002463,2]
[323704525,1714168279413,-4058.72,0.0002463,2]
[323704526,1714168279424,-4058.72,0.0002463,2]
[323704527,1714168279434,-4058.72,0.0002463,2]
[323704528,1714168279444,-4058.72,0.0002463,2]
[323704529,1714168279454,-4058.80140782,0.0002463,2]
[323704530,1714168279463,-1000.0,0.00024657,2]
[323704531,1714168279473,-1000.0,0.00024657,2]
[323704532,1714168279483,-1000.0,0.00024657,2]
[323704533,1714168279492,-406.27634985,0.00024657,2]
[323704534,1714168279501,-762.0,0.00024657,2]
[323704535,1714168279512,-284.98138062,0.00024657,2]
[323704536,1714168279522,-912.35,0.00024657,2]
[323704537,1714168279532,-912.35,0.00024657,2]
[323704538,1714168279542,-912.35,0.00024657,2]
[323704539,1714168279552,-912.35,0.00024657,2]
[323704540,1714168279563,-912.35,0.00024657,2]
[323704541,1714168279573,-912.35,0.00024657,2]
[323704542,1714168279584,-912.35,0.00024657,2]
[323704543,1714168279594,-912.35,0.00024657,2]
[323704544,1714168279604,-912.35,0.00024657,2]
[323704545,1714168279614,-912.35,0.00024657,2]
[323704546,1714168279624,-912.35,0.00024657,2]
[323704547,1714168279633,-912.35,0.00024657,2]
[323704548,1714168279643,-912.35,0.00024657,2]
[323704549,1714168279653,-912.35,0.00024657,2]
[323704550,1714168279663,-912.35,0.00024657,2]
[323704551,1714168279673,-912.35,0.00024657,2]
[323704552,1714168279683,-912.35,0.00024657,2]
[323704553,1714168279693,-912.35,0.00024657,2]
[323704554,1714168279702,-912.35,0.00024657,2]
[323704555,1714168279712,-912.35,0.00024657,2]
[323704556,1714168279721,-912.35,0.00024657,2]
[323704557,1714168279731,-912.35,0.00024657,2]
[323704558,1714168279741,-912.35,0.00024657,2]
[323704559,1714168279750,-912.42251875,0.00024657,2]
[323704560,1714168279759,-200.0,0.00024658,2]
[323704561,1714168279769,-723.659919,0.00024658,2]
[323704562,1714168279778,-3711.31,0.00024658,2]
[323704563,1714168279788,-151.0,0.00024658,2]
[323704564,1714168279797,-250.49088,0.00024658,2]
[323704565,1714168279807,-8421.62,0.00024658,4]
[323704566,1714168279817,-8404.74,0.00024658,2]
[323704567,1714168279827,-500.41,0.00024658,2]
[323704568,1714168279837,-241.51,0.00024658,4]
[323704569,1714168279847,-221.304595,0.00024658,7]
[323704570,1714168279857,-181.2310004,0.00024659,2]
[323704571,1714168279868,-272.56348489,0.0002466,2]
[323704572,1714168279878,-1985.28003657,0.00024696,2]
[323704573,1714168279888,-272.56348489,0.0002472,2]
[323704574,1714168279898,-272.56348489,0.00024726,2]
[323704575,1714168279908,-284.98138082,0.00024741,2]
[323704576,1714168279918,-151.59500228,0.00024768,2]
[323704577,1714168279928,-609.06151124,0.00024783,2]
[323704578,1714168279938,-152.40213237,0.00024793,2]
[323704579,1714168279948,-223331.97123347,0.000248,7]
[323704580,1714168279966,-943.80866538,0.000248,7]
[323704581,1714168280067,-500.0,0.00010958,2]
[323704582,1714168280077,-227.33613147,0.000248,7]
[323704583,1714168280089,-1124.37747561,0.000248,7]
[323704584,1714168280106,-1098.81,0.000248,7]
[323704585,1714168280124,-921.86646866,0.000248,7]
[323704586,1714168280140,-817.71087731,0.000248,7]
[323704587,1714168280153,-21534.1191481,0.000248,7]
[323704588,1714168280163,-151.0,0.000248,7]
[323704589,1714168280174,-8626.55472799,0.000248,2]
[323704590,1714168280254,-629.53,0.00010958,2]
[323704591,1714168280265,-808.5,0.00013151,2]
[323704592,1714168280275,-162.7,0.00022763,2]
[323704593,1714168280285,-3701.49527201,0.000248,2]
[323704594,1714168280296,-1107.11802799,0.000248,2]
[323704595,1714168280612,314.16720001,8.219e-05,2]
[323704596,1714168281290,600.0,8.219e-05,2]
[323704608,1714168692175,2000.0,0.00025,120]
[323704609,1714168917012,1633.27,0.00025,120]
[323704614,1714169095233,231.63,8.398e-05,2]
[323704716,1714169431989,-453.51,9.525e-05,2]
[323704717,1714169432046,-665.79,9.525e-05,2]
[323704718,1714169432058,-7211.0,9.525e-05,2]
[323704719,1714169432264,-6372.875,9.525e-05,2]
[323704720,1714169432273,-4981.60748162,9.626e-05,2]
[323704721,1714169432282,-2210.41804143,9.627e-05,2]
[323704722,1714169432291,-505.66,0.00010008,2]
[323704723,1714169432301,-7461.10547741,0.00010008,2]
[323704724,1714169432312,-277.94262863,0.00010008,2]
[323704726,1714169432323,-414.95236416,0.00010008,2]
[323704729,1714169432338,-406.13838012,0.00010008,2]
[323704767,1714169438057,-3370.01740563,0.00010008,2]
[323704768,1714169438114,-1916.68631046,0.00010008,2]
[323704769,1714169438126,-375.38415729,0.00010008,2]
[323704770,1714169438137,-324.95664198,0.00010008,2]
[323704771,1714169438222,-6452.24595024,0.00010008,2]
[323704772,1714169438234,-2900.57068408,0.00010008,2]
[323704773,1714169438244,-257.41029778,0.000101,2]
[323704774,1714169438253,-169.29,0.00010307,2]
[323704775,1714169438262,-400.0,0.00010396,2]
[323704776,1714169438272,-171.4,0.00010422,2]
[323704777,1714169438281,-171.4,0.0001045,2]
[323704778,1714169438290,-3642.77,0.0001045,2]
[323704779,1714169438300,-171.4,0.00010479,2]
[323704780,1714169438309,-171.4,0.00010507,2]
[323704781,1714169438318,-171.4,0.00010536,2]
[323704782,1714169438328,-171.4,0.00010565,2]
[323704783,1714169438338,-176.0,0.0001057,2]
[323704784,1714169438348,-171.4,0.00010593,2]
[323704785,1714169438358,-171.4,0.00010622,2]
[323704786,1714169438369,-171.4,0.0001065,2]
[323704787,1714169438378,-2210.41804144,0.00010658,2]
[323704788,1714169438387,-231.63,0.00010662,2]
[323704789,1714169438396,-171.4,0.00010679,2]
[323704790,1714169438407,-171.4,0.00010708,2]
[323704791,1714169438417,-171.4,0.00010736,2]
[323704792,1714169438428,-16000.0,0.00010758,2]
[323704793,1714169438438,-171.4,0.00010765,2]
[323704794,1714169438449,-171.4,0.00010793,2]
[323704795,1714169438460,-171.4,0.00010822,2]
[323704796,1714169438469,-171.4,0.0001085,2]
[323704797,1714169438478,-199.29,0.00010858,2]
[323704798,1714169438488,-171.4,0.00010879,2]
[323704799,1714169438497,-155.0,0.000109,2]
[323704800,1714169438506,-171.4,0.00010908,2]
[323704801,1714169438516,-171.4,0.00010936,2]
[323704802,1714169438525,-500.0,0.00010958,2]
[323704803,1714169438535,-500.0,0.00010958,2]
[323704804,1714169438544,-500.0,0.00010958,2]
[323704805,1714169438554,-500.0,0.00010958,2]
[323704806,1714169438563,-500.0,0.00010958,2]
[323704807,1714169438572,-500.0,0.00010958,2]
[323704808,1714169438582,-500.0,0.00010958,2]
[323704809,1714169438592,-500.0,0.00010958,2]
[323704810,1714169438601,-187.48,0.00010958,2]
[323704811,1714169438611,-500.0,0.00010958,2]
[323704813,1714169438620,-626.94,0.00010958,2]
[323704815,1714169438629,-500.0,0.00010958,2]
[323704816,1714169438638,-500.0,0.00010958,2]
[323704817,1714169438647,-500.0,0.00010958,2]
[323704818,1714169438656,-500.0,0.00010958,2]
[323704819,1714169438666,-313.86,0.00010958,2]
[323704820,1714169438675,-500.0,0.00010958,2]
[323704821,1714169438684,-500.0,0.00010958,2]
[323704822,1714169438693,-500.0,0.00010958,2]
[323704823,1714169438704,-500.0,0.00010958,2]
[323704824,1714169438713,-500.0,0.00010958,2]
[323704825,1714169438723,-500.0,0.00010958,2]
[323704826,1714169438732,-500.0,0.00010958,2]
[323704827,1714169438741,-500.0,0.00010958,2]
[323704828,1714169438750,-500.0,0.00010958,2]
[323704829,1714169438760,-500.0,0.00010958,2]
[323704830,1714169438769,-500.0,0.00010958,2]
[323704831,1714169438779,-500.0,0.00010958,2]
[323704832,1714169438788,-500.0,0.00010958,2]
[323704833,1714169438798,-291.94,0.00010958,2]
[323704834,1714169438808,-150.0,0.00010959,2]
[323704835,1714169438817,-2000.0,0.00010959,3]
[323704836,1714169438827,-171.4,0.00010965,2]
[323704837,1714169438836,-1561.5369,0.00011188,2]
[323704838,1714169438845,-500.0,0.00011232,2]
[323704839,1714169438855,-500.0,0.00011232,2]
[323704840,1714169438865,-500.0,0.00011232,2]
[323704841,1714169438875,-500.0,0.00011232,2]
[323704842,1714169438884,-500.0,0.00011232,2]
[323704843,1714169438894,-500.0,0.00011232,2]
[323704844,1714169438905,-500.0,0.00011232,2]
[323704845,1714169438915,-500.0,0.00011232,2]
[323704846,1714169438926,-500.0,0.00011232,2]
[323704847,1714169438936,-500.0,0.00011232,2]
[323704848,1714169438946,-500.0,0.00011232,2]
[323704849,1714169438957,-500.0,0.00011232,2]
[323704850,1714169438967,-500.0,0.00011232,2]
[323704851,1714169438977,-500.0,0.00011232,2]
[323704852,1714169438988,-500.0,0.00011232,2]
[323704853,1714169438997,-500.0,0.00011232,2]
[323704854,1714169439006,-205.9345724,0.00011232,2]
[323704855,1714169439016,-500.0,0.00011232,2]
[323704856,1714169439025,-500.0,0.00011232,2]
[323704857,1714169439035,-500.0,0.00011232,2]
[323704858,1714169439045,-500.0,0.00011232,2]
[323704859,1714169439054,-500.0,0.00011232,2]
[323704860,1714169439064,-500.0,0.00011232,2]
[323704861,1714169439073,-500.0,0.00011232,2]
[323704862,1714169439084,-29723.54460303,0.00011288,2]
[323704863,1714169439093,-499.99,0.00011288,2]
[323704864,1714169439102,-150.99,0.00011343,2]
[323704865,1714169439111,-578.0799,0.00011406,2]
[323704866,1714169439120,-873.66,0.00011431,2]
[323704867,1714169439129,-500.0,0.00011506,2]
[323704868,1714169439139,-500.0,0.00011506,2]
[323704869,1714169439149,-500.0,0.00011506,2]
[323704870,1714169439158,-500.0,0.00011506,2]
[323704871,1714169439167,-500.0,0.00011506,2]
[323704872,1714169439176,-500.0,0.00011506,2]
[323704873,1714169439186,-500.0,0.00011506,2]
[323704874,1714169439195,-500.0,0.00011506,2]
[323704875,1714169439206,-500.0,0.00011506,2]
[323704876,1714169439215,-500.0,0.00011506,2]
[323704877,1714169439226,-585.11650642,0.00011506,2]
[323704878,1714169439236,-500.0,0.00011506,2]
[323704879,1714169439245,-500.0,0.00011506,2]
[323704880,1714169439255,-500.0,0.00011506,2]
[323704881,1714169439264,-500.0,0.00011506,2]
[323704882,1714169439274,-500.0,0.00011506,2]
[323704883,1714169439283,-500.0,0.00011506,2]
[323704884,1714169439292,-500.0,0.00011506,2]
[323704885,1714169439302,-500.0,0.00011506,2]
[323704886,1714169439312,-500.0,0.00011506,2]
[323704887,1714169439321,-500.0,0.00011506,2]
[323704888,1714169439331,-500.0,0.00011506,2]
[323704889,1714169439341,-500.0,0.00011506,2]
[323704890,1714169439352,-2500.0,0.00011679,2]
[323704891,1714169439362,-7500.0,0.0001168,2]
[323704892,1714169439371,-400.0,0.00011695,2]
[323704893,1714169439381,-500.0,0.00011778,2]
[323704894,1714169439390,-500.0,0.00011778,2]
[323704895,1714169439400,-1597.56,0.00011778,2]
[323704896,1714169439409,-500.0,0.00011778,2]
[323704897,1714169439420,-703.2,0.00011778,2]
[323704898,1714169439429,-500.0,0.00011778,2]
[323704899,1714169439439,-500.0,0.00011778,2]
[323704900,1714169439449,-500.0,0.00011778,2]
[323704901,1714169439458,-500.0,0.00011778,2]
[323704902,1714169439468,-500.0,0.00011778,2]
[323704903,1714169439477,-500.0,0.00011778,2]
[323704904,1714169439486,-500.0,0.00011778,2]
[323704905,1714169439495,-500.0,0.00011778,2]
[323704906,1714169439504,-500.0,0.00011778,2]
[323704907,1714169439514,-500.0,0.00011778,2]
[323704908,1714169439524,-500.0,0.00011778,2]
[323704909,1714169439533,-500.0,0.00011778,2]
[323704910,1714169439542,-500.0,0.00011778,2]
[323704911,1714169439552,-247.22959597,0.00011778,2]
[323704912,1714169439561,-500.0,0.00011778,2]
[323704913,1714169439571,-500.0,0.00011778,2]
[323704914,1714169439580,-822.56,0.00011778,2]
[323704915,1714169439590,-500.0,0.00011778,2]
[323704916,1714169439600,-772.08,0.00011778,2]
[323704917,1714169439610,-500.0,0.00011778,2]
[323704918,1714169439619,-500.0,0.00011778,2]
[323704919,1714169439630,-500.0,0.00011778,2]
[323704920,1714169439639,-500.0,0.00011778,2]
[323704921,1714169439649,-500.0,0.00011778,2]
[323704922,1714169439659,-500.0,0.00011778,2]
[323704923,1714169439668,-2242.41,0.00011778,2]
[323704924,1714169439678,-877.51,0.00011778,2]
[323704925,1714169439687,-500.0,0.00011778,2]
[323704926,1714169439696,-500.0,0.00011778,2]
[323704927,1714169439706,-500.0,0.00011778,2]
[323704928,1714169439716,-631.42,0.00011778,2]
[323704929,1714169439725,-500.0,0.00011778,2]
[323704930,1714169439734,-500.0,0.00011779,2]
[323704931,1714169439743,-500.0,0.00011779,2]
[323704932,1714169439752,-233.00512907,0.00011779,2]
[323704933,1714169439762,-500.0,0.00011779,2]
[323704934,1714169439771,-541.33521861,0.00011779,2]
[323704935,1714169439780,-322.7,0.00011779,2]
[323704936,1714169439788,-500.0,0.00011779,2]
[323704937,1714169439798,-500.0,0.00011779,2]
[323704938,1714169439809,-500.0,0.00011779,2]
[323704940,1714169439818,-500.0,0.00011779,2]
[323704941,1714169439827,-722.2,0.00011779,2]
[323704942,1714169439836,-150.0,0.00011779,2]
[323704943,1714169439845,-500.0,0.00011779,2]
[323704944,1714169439855,-500.0,0.00011779,2]
[323704945,1714169439864,-500.0,0.00011779,2]
[323704946,1714169439873,-500.0,0.00011779,2]
[323704947,1714169439883,-372.26903956,0.00011779,2]
[323704948,1714169439892,-360.25317291,0.00011779,2]
[323704949,1714169439901,-500.0,0.00011779,2]
[323704950,1714169439910,-500.0,0.00011779,2]
[323704951,1714169439920,-500.0,0.00011779,2]
[323704952,1714169439929,-500.0,0.00011779,2]
[323704953,1714169439939,-500.0,0.00011779,2]
[323704954,1714169439949,-500.0,0.00011779,2]
[323704955,1714169439958,-500.0,0.00011779,2]
[323704956,1714169439967,-500.0,0.00011779,2]
[323704958,1714169439976,-500.0,0.00011779,2]
[323704960,1714169439986,-500.0,0.00011779,2]
[323704962,1714169439995,-500.0,0.00011779,2]
[323704964,1714169440004,-500.0,0.00011779,2]
[323704966,1714169440014,-500.0,0.00011779,2]
[323704968,1714169440023,-500.0,0.00011779,2]
[323704970,1714169440032,-500.0,0.00011779,2]
[323704972,1714169440042,-500.0,0.00011779,2]
[323704974,1714169440051,-500.0,0.00011779,2]
[323704976,1714169440061,-500.0,0.00011779,2]
[323704979,1714169440070,-500.0,0.00011779,2]
[323704981,1714169440079,-500.0,0.00011779,2]
[323704982,1714169440089,-500.0,0.00011779,2]
[323704984,1714169440097,-500.0,0.00011779,2]
[323704986,1714169440106,-500.0,0.00011779,2]
[323704988,1714169440115,-500.0,0.00011779,2]
[323704990,1714169440125,-500.0,0.00011779,2]
[323704992,1714169440134,-500.0,0.00011779,2]
[323704994,1714169440144,-548.38,0.00011779,2]
[323704996,1714169440153,-500.0,0.00011779,2]
[323704998,1714169440162,-500.0,0.00011779,2]
[323705000,1714169440171,-277.22082493,0.00011779,2]
[323705002,1714169440180,-500.0,0.00011779,2]
[323705004,1714169440189,-500.0,0.00011779,2]
[323705006,1714169440200,-316.30168453,0.00011779,2]
[323705008,1714169440208,-500.0,0.00011779,2]
[323705010,1714169440218,-500.0,0.00011779,2]
[323705012,1714169440227,-500.0,0.00011779,2]
[323705014,1714169440236,-500.0,0.00011779,2]
[323705015,1714169440245,-500.0,0.00011779,2]
[323705016,1714169440254,-500.0,0.00011779,2]
[323705017,1714169440263,-500.0,0.00011779,2]
[323705018,1714169440272,-846.61,0.00011779,2]
[323705019,1714169440282,-500.0,0.00011779,2]
[323705020,1714169440292,-500.0,0.00011779,2]
[323705021,1714169440302,-500.0,0.00011779,2]
[323705022,1714169440311,-500.0,0.00011779,2]
[323705023,1714169440321,-500.0,0.00011779,2]
[323705024,1714169440332,-500.0,0.00011779,2]
[323705025,1714169440343,-500.0,0.00011779,2]
[323705026,1714169440353,-500.0,0.00011779,2]
[323705027,1714169440365,-500.0,0.00011779,2]
[323705028,1714169440375,-500.0,0.00011779,2]
[323705029,1714169440385,-500.0,0.00011779,2]
[323705030,1714169440394,-500.0,0.00011779,2]
[323705031,1714169440405,-500.0,0.00011779,2]
[323705032,1714169440415,-500.0,0.00011779,2]
[323705033,1714169440426,-500.0,0.00011779,2]
[323705034,1714169440437,-500.0,0.00011779,2]
[323705035,1714169440446,-753.79,0.00011779,2]
[323705036,1714169440457,-500.0,0.00011779,2]
[323705037,1714169440466,-500.0,0.00011779,2]
[323705038,1714169440474,-500.0,0.00011779,2]
[323705039,1714169440483,-500.0,0.00011779,2]
[323705040,1714169440492,-500.0,0.00011779,2]
[323705041,1714169440501,-500.0,0.00011779,2]
[323705042,1714169440510,-500.0,0.00011779,2]
[323705043,1714169440519,-564.55,0.00011779,2]
[323705044,1714169440529,-500.0,0.00011779,2]
[323705046,1714169440540,-500.0,0.00011779,2]
[323705049,1714169440550,-500.0,0.00011779,2]
[323705050,1714169440559,-807.08,0.00011779,2]
[323705052,1714169440568,-533.60169094,0.00011779,2]
[323705055,1714169440577,-500.0,0.00011779,2]
[323705056,1714169440587,-500.0,0.00011779,2]
[323705059,1714169440598,-500.0,0.00011779,2]
[323705061,1714169440608,-500.0,0.00011779,2]
[323705063,1714169440619,-500.0,0.00011779,2]
[323705064,1714169440629,-500.0,0.00011779,2]
[323705067,1714169440638,-500.0,0.00011779,2]
[323705069,1714169440648,-500.0,0.00011779,2]
[323705071,1714169440658,-500.00716462,0.00011779,2]
[323705072,1714169440667,-663.39,0.00011779,2]
[323705074,1714169440677,-500.0,0.00011779,2]
[323705076,1714169440686,-500.0,0.00011779,2]
[323705078,1714169440694,-500.0,0.00011779,2]
[323705080,1714169440704,-500.0,0.0001178,2]
[323705082,1714169440714,-500.0,0.0001178,2]
[323705084,1714169440723,-500.0,0.0001178,2]
[323705086,1714169440732,-500.0,0.0001178,2]
[323705088,1714169440741,-500.0,0.0001178,2]
[323705090,1714169440750,-500.0,0.0001178,2]
[323705092,1714169440759,-500.0,0.0001178,2]
[323705094,1714169440767,-500.0,0.0001178,2]
[323705095,1714169440776,-500.0,0.0001178,2]
[323705096,1714169440785,-500.0,0.0001178,2]
[323705097,1714169440793,-500.0,0.0001178,2]
[323705098,1714169440802,-500.0,0.0001178,2]
[323705099,1714169440811,-500.0,0.0001178,2]
[323705100,1714169440820,-500.0,0.0001178,2]
[323705101,1714169440828,-500.0,0.0001178,2]
[323705102,1714169440837,-500.0,0.0001178,2]
[323705103,1714169440845,-500.0,0.0001178,2]
[323705104,1714169440854,-500.0,0.00011889,2]
[323705105,1714169440862,-500.0,0.00011889,2]
[323705106,1714169440871,-500.0,0.00011889,2]
[323705108,1714169440880,-776.74,0.0001189,2]
[323705110,1714169440889,-776.74,0.0001189,2]
[323705112,1714169440899,-499.68618822,0.00011898,2]
[323705114,1714169440907,-155.0,0.00011899,2]
[323705116,1714169440917,-500.0,0.00011899,2]
[323705118,1714169440926,-578.47,0.00011899,2]
[323705119,1714169440934,-500.0,0.00011899,2]
[323705121,1714169440944,-500.0,0.00011899,2]
[323705124,1714169440954,-500.0,0.00011899,2]
[323705126,1714169440963,-500.0,0.00011899,2]
[323705128,1714169440972,-500.0,0.00011899,2]
[323705130,1714169440981,-500.0,0.00011899,2]
[323705131,1714169440991,-500.0,0.00011899,2]